[Event "*** Titled Tuesday Blitz"]
[Site "Chess.com"]
[Date "2021.03.16"]
[Round "9"]
[White "Fortitudine"]
[Black "Vandros57"]
[Result "1/2-1/2"]
[WhiteElo "2277"]
[BlackElo "2205"]
[TimeControl "180+1"]
[EndTime "11:45:14 PDT"]
[Termination "Game drawn by repetition"]

1. c4 {[%clk 0:03:00.9]} 1... c5 {[%clk 0:02:58.6]} 2. g3 {[%clk 0:02:59.1]}
2... g6 {[%clk 0:02:57]} 3. Bg2 {[%clk 0:02:59.1]} 3... Bg7 {[%clk 0:02:56.4]}
4. Nc3 {[%clk 0:02:59.2]} 4... Nc6 {[%clk 0:02:56]} 5. d3 {[%clk 0:02:58.7]}
5... Nf6 {[%clk 0:02:54.8]} 6. e4 {[%clk 0:02:58]} 6... d6 {[%clk 0:02:53.1]} 7.
Nge2 {[%clk 0:02:58]} 7... O-O {[%clk 0:02:52.2]} 8. O-O {[%clk 0:02:57.8]} 8...
Ne8 {[%clk 0:02:46.5]} 9. Be3 {[%clk 0:02:56.1]} 9... Nc7 {[%clk 0:02:41]} 10.
d4 {[%clk 0:02:55.3]} 10... cxd4 {[%clk 0:02:29.9]} 11. Nxd4 {[%clk 0:02:56.2]}
11... Nxd4 {[%clk 0:02:26.8]} 12. Bxd4 {[%clk 0:02:57.1]} 12... Bxd4 {[%clk
0:02:25.2]} 13. Qxd4 {[%clk 0:02:58]} 13... e5 {[%clk 0:02:15.2]} 14. Qd2 {[%clk
0:02:40.1]} 14... Be6 {[%clk 0:02:14]} 15. b3 {[%clk 0:02:36.9]} 15... Qe7
{[%clk 0:02:11.5]} 16. Rac1 {[%clk 0:02:15.5]} 16... a6 {[%clk 0:02:08.4]} 17.
Rfd1 {[%clk 0:02:09.1]} 17... Rad8 {[%clk 0:02:07.6]} 18. h4 {[%clk 0:02:01.2]}
18... h5 {[%clk 0:01:47.4]} 19. Qg5 {[%clk 0:01:42.1]} 19... Qxg5 {[%clk
0:01:45.8]} 20. hxg5 {[%clk 0:01:43]} 20... f6 {[%clk 0:01:40.8]} 21. gxf6
{[%clk 0:01:41.2]} 21... Rxf6 {[%clk 0:01:40]} 22. f3 {[%clk 0:01:36.6]} 22...
Kg7 {[%clk 0:01:38.1]} 23. Rd2 {[%clk 0:01:00.6]} 23... b5 {[%clk 0:00:46.4]}
24. cxb5 {[%clk 0:00:54.6]} 24... Nxb5 {[%clk 0:00:45]} 25. Nxb5 {[%clk
0:00:49.3]} 25... axb5 {[%clk 0:00:45]} 26. Rc6 {[%clk 0:00:49.6]} 26... Bf7
{[%clk 0:00:40.9]} 27. Rb6 {[%clk 0:00:42.8]} 27... Be8 {[%clk 0:00:40.3]} 28.
Kf2 {[%clk 0:00:34.6]} 28... g5 {[%clk 0:00:38.5]} 29. Ke3 {[%clk 0:00:33.7]}
29... g4 {[%clk 0:00:36.6]} 30. b4 {[%clk 0:00:17.6]} 30... gxf3 {[%clk
0:00:33.1]} 31. Bxf3 {[%clk 0:00:18.5]} 31... Kg6 {[%clk 0:00:32]} 32. Rg2
{[%clk 0:00:16.1]} 32... Kg5 {[%clk 0:00:31.3]} 33. Rh2 {[%clk 0:00:14.7]} 33...
Rf8 {[%clk 0:00:25.5]} 34. Rd2 {[%clk 0:00:13.3]} 34... Rf6 {[%clk 0:00:24.5]}
35. Rb7 {[%clk 0:00:13.5]} 35... Rc8 {[%clk 0:00:18.1]} 36. Rg7+ {[%clk
0:00:10.4]} 36... Kh6 {[%clk 0:00:14.2]} 37. Re7 {[%clk 0:00:10.2]} 37... Rc3+
{[%clk 0:00:11.9]} 38. Ke2 {[%clk 0:00:10.6]} 38... Rcxf3 {[%clk 0:00:11.6]} 39.
Rxe8 {[%clk 0:00:10.7]} 39... Rf2+ {[%clk 0:00:11.7]} 40. Ke1 {[%clk 0:00:11.2]}
40... Rf1+ {[%clk 0:00:10.7]} 41. Ke2 {[%clk 0:00:11]} 41... R6f2+ {[%clk
0:00:10.7]} 42. Kd3 {[%clk 0:00:10.9]} 42... Rxd2+ {[%clk 0:00:09.7]} 43. Kxd2
{[%clk 0:00:11.8]} 43... Rf2+ {[%clk 0:00:09.2]} 44. Ke3 {[%clk 0:00:12.3]}
44... Rxa2 {[%clk 0:00:09]} 45. Re6+ {[%clk 0:00:12.7]} 45... Kg5 {[%clk
0:00:06.2]} 46. Rxd6 {[%clk 0:00:12]} 46... Ra3+ {[%clk 0:00:06.2]} 47. Kf2
{[%clk 0:00:12.6]} 47... Ra2+ {[%clk 0:00:06.2]} 48. Kf3 {[%clk 0:00:12.6]}
48... Ra3+ {[%clk 0:00:06.2]} 49. Kg2 {[%clk 0:00:13.1]} 49... Ra2+ {[%clk
0:00:06.2]} 50. Kf3 {[%clk 0:00:12.8]} 50... Ra3+ {[%clk 0:00:06.2]} 51. Kf2
{[%clk 0:00:12]} 51... Ra2+ {[%clk 0:00:06.3]} 52. Kf3 {[%clk 0:00:10.8]}
1/2-1/2

[Event "*** Titled Tuesday Blitz"]
[Site "Chess.com"]
[Date "2021.03.16"]
[Round "9"]
[White "juli2512"]
[Black "IsaacWiebe"]
[Result "1/2-1/2"]
[WhiteElo "2229"]
[BlackElo "2275"]
[TimeControl "180+1"]
[EndTime "11:45:17 PDT"]
[Termination "Game drawn - insufficient material"]

1. e4 {[%clk 0:03:00.9]} 1... c5 {[%clk 0:03:00]} 2. d3 {[%clk 0:03:00.5]} 2...
Nc6 {[%clk 0:02:59.1]} 3. Nc3 {[%clk 0:02:58.4]} 3... g6 {[%clk 0:02:59.2]} 4.
g3 {[%clk 0:02:58.8]} 4... Bg7 {[%clk 0:02:59.3]} 5. Bg2 {[%clk 0:02:59.4]} 5...
e6 {[%clk 0:02:59.5]} 6. f4 {[%clk 0:02:59.6]} 6... Nge7 {[%clk 0:02:59.7]} 7.
Nf3 {[%clk 0:02:59.5]} 7... O-O {[%clk 0:02:59.6]} 8. O-O {[%clk 0:03:00]} 8...
d5 {[%clk 0:02:59.1]} 9. e5 {[%clk 0:02:59.1]} 9... Rb8 {[%clk 0:02:53.9]} 10.
Ne2 {[%clk 0:02:58.8]} 10... b5 {[%clk 0:02:53]} 11. c3 {[%clk 0:02:59.2]} 11...
b4 {[%clk 0:02:51.7]} 12. d4 {[%clk 0:02:59.3]} 12... Ba6 {[%clk 0:02:49.2]} 13.
Be3 {[%clk 0:02:56.5]} 13... bxc3 {[%clk 0:02:45.7]} 14. bxc3 {[%clk 0:02:55.9]}
14... Nf5 {[%clk 0:02:39.9]} 15. Bf2 {[%clk 0:02:54.4]} 15... Qa5 {[%clk
0:02:30.8]} 16. g4 {[%clk 0:02:50]} 16... Nfe7 {[%clk 0:02:26.6]} 17. dxc5
{[%clk 0:02:41.2]} 17... Bxe2 {[%clk 0:02:20.4]} 18. Qxe2 {[%clk 0:02:40.3]}
18... Qxc3 {[%clk 0:02:20.4]} 19. Rac1 {[%clk 0:02:28.7]} 19... Rb2 {[%clk
0:02:00.9]} 20. Rxc3 {[%clk 0:02:17.7]} 20... Rxe2 {[%clk 0:02:00.5]} 21. Ra3
{[%clk 0:02:14.5]} 21... Rb8 {[%clk 0:01:57]} 22. Nd4 {[%clk 0:01:55.9]} 22...
Nxd4 {[%clk 0:01:50.7]} 23. Bxd4 {[%clk 0:01:55.2]} 23... Nc6 {[%clk 0:01:46.3]}
24. Ba1 {[%clk 0:01:48]} 24... Rc2 {[%clk 0:01:38.5]} 25. Ra6 {[%clk 0:01:31.6]}
25... Rxc5 {[%clk 0:01:37.6]} 26. f5 {[%clk 0:01:23.2]} 26... gxf5 {[%clk
0:01:25.6]} 27. gxf5 {[%clk 0:01:23.2]} 27... exf5 {[%clk 0:01:25.6]} 28. Rd1
{[%clk 0:01:17.4]} 28... Nxe5 {[%clk 0:01:13.7]} 29. Rxa7 {[%clk 0:01:08.3]}
29... Rbc8 {[%clk 0:00:15.8]} 30. Bxe5 {[%clk 0:00:57.5]} 30... Bxe5 {[%clk
0:00:14.1]} 31. Bxd5 {[%clk 0:00:57.8]} 31... R5c7 {[%clk 0:00:10.1]} 32. Rxc7
{[%clk 0:00:53.5]} 32... Rxc7 {[%clk 0:00:10.4]} 33. Rd2 {[%clk 0:00:49.1]}
33... Kg7 {[%clk 0:00:09.9]} 34. Kg2 {[%clk 0:00:48.4]} 34... Kf6 {[%clk
0:00:08.4]} 35. Bb3 {[%clk 0:00:45.4]} 35... Bc3 {[%clk 0:00:04.3]} 36. Re2
{[%clk 0:00:45.1]} 36... f4 {[%clk 0:00:03.6]} 37. Kf3 {[%clk 0:00:42.7]} 37...
Be5 {[%clk 0:00:03.8]} 38. Rc2 {[%clk 0:00:38.1]} 38... Rxc2 {[%clk 0:00:03.5]}
39. Bxc2 {[%clk 0:00:37.8]} 39... Bb8 {[%clk 0:00:02.8]} 40. Bxh7 {[%clk
0:00:37.3]} 40... Ke5 {[%clk 0:00:02.8]} 41. Bc2 {[%clk 0:00:36.6]} 41... Kf6
{[%clk 0:00:03]} 42. Bb3 {[%clk 0:00:35.9]} 42... Kg6 {[%clk 0:00:02.7]} 43. h3
{[%clk 0:00:34.9]} 43... f5 {[%clk 0:00:02.8]} 44. Be6 {[%clk 0:00:32.2]} 44...
Kg5 {[%clk 0:00:03]} 45. Bc8 {[%clk 0:00:31.9]} 45... Kf6 {[%clk 0:00:03.4]} 46.
a4 {[%clk 0:00:30]} 46... Kg5 {[%clk 0:00:03.7]} 47. a5 {[%clk 0:00:27.5]} 47...
Ba7 {[%clk 0:00:04.1]} 48. a6 {[%clk 0:00:25.7]} 48... Bb8 {[%clk 0:00:03]} 49.
Bd7 {[%clk 0:00:23.9]} 49... Ba7 {[%clk 0:00:03.2]} 50. h4+ {[%clk 0:00:22.6]}
50... Kxh4 {[%clk 0:00:02.8]} 51. Kxf4 {[%clk 0:00:22.2]} 51... Kh5 {[%clk
0:00:01.6]} 52. Kxf5 {[%clk 0:00:21.2]} 52... Kh6 {[%clk 0:00:02.5]} 53. Ke6
{[%clk 0:00:20.8]} 53... Kg7 {[%clk 0:00:03.4]} 54. Kd6 {[%clk 0:00:21.1]} 54...
Kf8 {[%clk 0:00:04.3]} 55. Kc7 {[%clk 0:00:20.9]} 55... Ke7 {[%clk 0:00:04.4]}
56. Kb7 {[%clk 0:00:19.6]} 56... Bg1 {[%clk 0:00:04.9]} 57. Bg4 {[%clk
0:00:18.3]} 57... Be3 {[%clk 0:00:05]} 58. a7 {[%clk 0:00:18.3]} 58... Bxa7
{[%clk 0:00:05.1]} 1/2-1/2

[Event "*** Titled Tuesday Blitz"]
[Site "Chess.com"]
[Date "2021.03.16"]
[Round "9"]
[White "SaqoChess_Twitch"]
[Black "olksuna"]
[Result "0-1"]
[WhiteElo "2495"]
[BlackElo "2669"]
[TimeControl "180+1"]
[EndTime "11:45:24 PDT"]
[Termination "olksuna won by resignation"]

1. d4 {[%clk 0:02:57.2]} 1... Nf6 {[%clk 0:02:59.8]} 2. e3 {[%clk 0:02:58.1]}
2... g6 {[%clk 0:02:58.8]} 3. Nf3 {[%clk 0:02:59]} 3... Bg7 {[%clk 0:02:59.4]}
4. Be2 {[%clk 0:02:59.9]} 4... O-O {[%clk 0:02:59.9]} 5. O-O {[%clk 0:03:00.8]}
5... b6 {[%clk 0:02:59.3]} 6. Nbd2 {[%clk 0:03:01.7]} 6... Bb7 {[%clk
0:02:59.5]} 7. b3 {[%clk 0:03:02.6]} 7... c5 {[%clk 0:02:58.8]} 8. Bb2 {[%clk
0:03:02.8]} 8... d6 {[%clk 0:02:59.5]} 9. c4 {[%clk 0:03:03.2]} 9... e6 {[%clk
0:02:58.8]} 10. Qc2 {[%clk 0:03:02.7]} 10... Qe7 {[%clk 0:02:59.1]} 11. Rac1
{[%clk 0:03:03]} 11... Nbd7 {[%clk 0:02:59.4]} 12. Rfd1 {[%clk 0:03:02.5]} 12...
Rac8 {[%clk 0:03:00]} 13. Qb1 {[%clk 0:03:03]} 13... Rfe8 {[%clk 0:02:54.8]} 14.
Qa1 {[%clk 0:03:02.7]} 14... e5 {[%clk 0:02:55.2]} 15. dxe5 {[%clk 0:03:02.3]}
15... dxe5 {[%clk 0:02:56.1]} 16. Nf1 {[%clk 0:02:59.3]} 16... e4 {[%clk
0:02:53.1]} 17. N3d2 {[%clk 0:02:55.7]} 17... h5 {[%clk 0:02:48.8]} 18. Nb1
{[%clk 0:02:45.9]} 18... h4 {[%clk 0:02:40.9]} 19. h3 {[%clk 0:02:46.5]} 19...
Ne5 {[%clk 0:02:38]} 20. Bxe5 {[%clk 0:02:46.2]} 20... Qxe5 {[%clk 0:02:37.8]}
21. Qxe5 {[%clk 0:02:47]} 21... Rxe5 {[%clk 0:02:38.4]} 22. Nc3 {[%clk
0:02:47.5]} 22... Re7 {[%clk 0:02:32.5]} 23. Nb5 {[%clk 0:02:46.7]} 23... Bc6
{[%clk 0:02:25.5]} 24. Nd6 {[%clk 0:02:43.8]} 24... Rb8 {[%clk 0:02:19.6]} 25.
a4 {[%clk 0:02:43]} 25... Nd7 {[%clk 0:02:14.1]} 26. Nb5 {[%clk 0:02:38.6]}
26... Ne5 {[%clk 0:02:11]} 27. Rc2 {[%clk 0:02:37.4]} 27... a6 {[%clk 0:01:39]}
28. Nc3 {[%clk 0:02:37.2]} 28... f5 {[%clk 0:01:28.9]} 29. Nd5 {[%clk
0:02:36.7]} 29... Rd7 {[%clk 0:01:23.4]} 30. Rcd2 {[%clk 0:02:34.6]} 30... Kf7
{[%clk 0:01:23.4]} 31. Nf4 {[%clk 0:02:22.3]} 31... Rbd8 {[%clk 0:01:18.4]} 32.
Rxd7+ {[%clk 0:02:21.9]} 32... Rxd7 {[%clk 0:01:19.3]} 33. Rxd7+ {[%clk
0:02:22.1]} 33... Nxd7 {[%clk 0:01:16.7]} 34. Nd5 {[%clk 0:02:23]} 34... Ke6
{[%clk 0:00:53.4]} 35. Nc7+ {[%clk 0:02:22.7]} 35... Kd6 {[%clk 0:00:53.9]} 36.
Nxa6 {[%clk 0:02:23.3]} 36... Bb7 {[%clk 0:00:54]} 37. Nxc5 {[%clk 0:01:47.7]}
37... Kxc5 {[%clk 0:00:49.1]} 38. g3 {[%clk 0:01:43.5]} 38... Bf6 {[%clk
0:00:46.1]} 39. g4 {[%clk 0:01:41.9]} 39... Kb4 {[%clk 0:00:44]} 40. gxf5 {[%clk
0:01:42.1]} 40... gxf5 {[%clk 0:00:44.6]} 41. Bh5 {[%clk 0:01:26.6]} 41... Ne5
{[%clk 0:00:40.5]} 42. Nd2 {[%clk 0:01:24.5]} 42... Kc3 {[%clk 0:00:38.8]} 43.
c5 {[%clk 0:00:53.2]} 43... bxc5 {[%clk 0:00:37.8]} 44. Nc4 {[%clk 0:00:53.1]}
44... Nxc4 {[%clk 0:00:37.5]} 45. bxc4 {[%clk 0:00:54]} 45... Kb4 {[%clk
0:00:33]} 46. Be8 {[%clk 0:00:49.1]} 46... Kxc4 {[%clk 0:00:25.1]} 47. Bd7
{[%clk 0:00:49]} 47... Kd3 {[%clk 0:00:23.9]} 48. Bb5+ {[%clk 0:00:41.3]} 48...
Kc3 {[%clk 0:00:21.4]} 49. a5 {[%clk 0:00:41.9]} 49... Kb4 {[%clk 0:00:20.6]}
50. a6 {[%clk 0:00:42.8]} 50... Ba8 {[%clk 0:00:20.9]} 51. Bd7 {[%clk
0:00:41.7]} 51... c4 {[%clk 0:00:19.2]} 52. Kf1 {[%clk 0:00:39.7]} 52... c3
{[%clk 0:00:19.2]} 53. Ke1 {[%clk 0:00:39.4]} 53... c2 {[%clk 0:00:19.5]} 54.
Kd2 {[%clk 0:00:37.7]} 54... Kb3 {[%clk 0:00:19.9]} 55. Ba4+ {[%clk 0:00:29.5]}
55... Kxa4 {[%clk 0:00:19.4]} 56. Kxc2 {[%clk 0:00:30.4]} 56... Kb5 {[%clk
0:00:17.9]} 57. Kb3 {[%clk 0:00:30.5]} 57... Bd5+ {[%clk 0:00:18]} 58. Ka3
{[%clk 0:00:30.5]} 58... Kxa6 {[%clk 0:00:18.9]} 59. Kb4 {[%clk 0:00:31.4]}
59... Kb6 {[%clk 0:00:18.8]} 60. Ka3 {[%clk 0:00:29.7]} 60... Kc5 {[%clk
0:00:19]} 61. Ka4 {[%clk 0:00:30.2]} 61... Kd6 {[%clk 0:00:19.2]} 62. Kb4 {[%clk
0:00:30.7]} 62... Ke5 {[%clk 0:00:20.1]} 63. Kc5 {[%clk 0:00:31]} 63... Be7+
{[%clk 0:00:19.9]} 64. Kb5 {[%clk 0:00:31.1]} 64... f4 {[%clk 0:00:20.3]} 65.
Kb6 {[%clk 0:00:29.9]} 65... Be6 {[%clk 0:00:20.3]} 66. Kc6 {[%clk 0:00:30.1]}
66... Bxh3 {[%clk 0:00:21.2]} 67. exf4+ {[%clk 0:00:30.4]} 67... Kxf4 {[%clk
0:00:21.4]} 68. Kd5 {[%clk 0:00:31.3]} 68... Bg2 {[%clk 0:00:21.6]} 69. Kd4
{[%clk 0:00:31.9]} 69... Bf3 {[%clk 0:00:22.5]} 70. Kd5 {[%clk 0:00:31.8]} 70...
h3 {[%clk 0:00:23.4]} 71. Ke6 {[%clk 0:00:32.7]} 71... h2 {[%clk 0:00:24.3]} 72.
Kf7 {[%clk 0:00:33.1]} 72... h1=Q {[%clk 0:00:25.2]} 73. Ke6 {[%clk 0:00:34]}
73... Qh5 {[%clk 0:00:22.5]} 74. Kd7 {[%clk 0:00:34.9]} 74... Ke5 {[%clk
0:00:22.3]} 0-1

[Event "*** Titled Tuesday Blitz"]
[Site "Chess.com"]
[Date "2021.03.16"]
[Round "9"]
[White "Aradhya2000"]
[Black "Grineva_Marianna"]
[Result "1-0"]
[WhiteElo "2566"]
[BlackElo "2273"]
[TimeControl "180+1"]
[EndTime "11:45:27 PDT"]
[Termination "Aradhya2000 won by checkmate"]

1. d4 {[%clk 0:03:00.9]} 1... d6 {[%clk 0:03:00.3]} 2. Nf3 {[%clk 0:02:59.8]}
2... c6 {[%clk 0:03:00.6]} 3. c4 {[%clk 0:02:54.6]} 3... Nd7 {[%clk 0:03:00.4]}
4. Nc3 {[%clk 0:02:53.7]} 4... h6 {[%clk 0:03:00.8]} 5. e4 {[%clk 0:02:53.1]}
5... g5 {[%clk 0:03:01]} 6. h4 {[%clk 0:02:52]} 6... g4 {[%clk 0:03:00.1]} 7.
Ng1 {[%clk 0:02:44.8]} 7... Ndf6 {[%clk 0:02:54.1]} 8. Bd3 {[%clk 0:02:38.9]}
8... e5 {[%clk 0:02:53.5]} 9. Nge2 {[%clk 0:02:36.1]} 9... Bg7 {[%clk
0:02:52.6]} 10. Be3 {[%clk 0:02:35.4]} 10... Ne7 {[%clk 0:02:52.8]} 11. Rc1
{[%clk 0:02:33.1]} 11... Be6 {[%clk 0:02:39.4]} 12. d5 {[%clk 0:02:25.7]} 12...
cxd5 {[%clk 0:02:38.7]} 13. cxd5 {[%clk 0:02:26.6]} 13... Bd7 {[%clk 0:02:38.2]}
14. Nb5 {[%clk 0:02:26.7]} 14... Bxb5 {[%clk 0:02:28]} 15. Bxb5+ {[%clk
0:02:26.4]} 15... Kf8 {[%clk 0:02:27.6]} 16. Nc3 {[%clk 0:02:26.5]} 16... a6
{[%clk 0:02:26.7]} 17. Be2 {[%clk 0:02:26]} 17... Qd7 {[%clk 0:02:24.3]} 18. a4
{[%clk 0:02:25.1]} 18... Rc8 {[%clk 0:02:22.9]} 19. h5 {[%clk 0:02:07.6]} 19...
Kg8 {[%clk 0:02:16.2]} 20. Rh4 {[%clk 0:01:49.2]} 20... g3 {[%clk 0:02:14.3]}
21. fxg3 {[%clk 0:01:48.2]} 21... Kh7 {[%clk 0:02:14.3]} 22. Bd3 {[%clk
0:01:43.2]} 22... Rhg8 {[%clk 0:02:05.2]} 23. Qf3 {[%clk 0:01:38.7]} 23... Bh8
{[%clk 0:01:57.6]} 24. Rc2 {[%clk 0:01:34.4]} 24... Rcf8 {[%clk 0:01:46.7]} 25.
Be2 {[%clk 0:01:25.2]} 25... Ne8 {[%clk 0:01:31.5]} 26. g4 {[%clk 0:01:22.3]}
26... Bf6 {[%clk 0:01:26.4]} 27. Rh1 {[%clk 0:01:20.6]} 27... Bg5 {[%clk
0:01:25.5]} 28. Nd1 {[%clk 0:01:18.6]} 28... Qxa4 {[%clk 0:01:11.6]} 29. Rc3
{[%clk 0:01:13.7]} 29... Qb4 {[%clk 0:00:59.7]} 30. Rf1 {[%clk 0:00:59.7]} 30...
f6 {[%clk 0:00:56.9]} 31. Kd2 {[%clk 0:00:58.5]} 31... Nc7 {[%clk 0:00:48.2]}
32. Kc2 {[%clk 0:00:53.4]} 32... Nb5 {[%clk 0:00:47.5]} 33. Bxb5 {[%clk
0:00:51.5]} 33... Qxb5 {[%clk 0:00:44.9]} 34. Bxg5 {[%clk 0:00:49.6]} 34... hxg5
{[%clk 0:00:42]} 35. Qd3 {[%clk 0:00:45.7]} 35... Qa4+ {[%clk 0:00:40.7]} 36.
Kd2 {[%clk 0:00:35.2]} 36... Rc8 {[%clk 0:00:39.9]} 37. Rxf6 {[%clk 0:00:34.1]}
37... Rxc3 {[%clk 0:00:35]} 38. Nxc3 {[%clk 0:00:24.7]} 38... Qd7 {[%clk
0:00:31.8]} 39. Qf3 {[%clk 0:00:20.3]} 39... Rg7 {[%clk 0:00:18.1]} 40. Re6
{[%clk 0:00:20.5]} 40... Ng8 {[%clk 0:00:17]} 41. Qf5+ {[%clk 0:00:19.4]} 41...
Kh8 {[%clk 0:00:17.3]} 42. h6 {[%clk 0:00:19.5]} 42... Nxh6 {[%clk 0:00:17.5]}
43. Rxh6+ {[%clk 0:00:18.9]} 43... Kg8 {[%clk 0:00:16.1]} 44. Qxd7 {[%clk
0:00:19]} 44... Rxd7 {[%clk 0:00:17]} 45. Rg6+ {[%clk 0:00:19.5]} 45... Kh7
{[%clk 0:00:16.7]} 46. Rxg5 {[%clk 0:00:19.8]} 46... Rf7 {[%clk 0:00:17.2]} 47.
Rf5 {[%clk 0:00:19.9]} 47... Rg7 {[%clk 0:00:17.4]} 48. g5 {[%clk 0:00:20.2]}
48... Kg6 {[%clk 0:00:17.6]} 49. Ne2 {[%clk 0:00:20.4]} 49... Kh5 {[%clk
0:00:17.7]} 50. Ke3 {[%clk 0:00:20.3]} 50... Kg4 {[%clk 0:00:18.2]} 51. Rf6
{[%clk 0:00:18.2]} 51... Rc7 {[%clk 0:00:18.3]} 52. g6 {[%clk 0:00:17.3]} 52...
Kg5 {[%clk 0:00:18.2]} 53. Rf7 {[%clk 0:00:17.5]} 53... Rc8 {[%clk 0:00:16.1]}
54. g7 {[%clk 0:00:17.8]} 54... Rg8 {[%clk 0:00:16.3]} 55. Rxb7 {[%clk 0:00:18]}
55... Kg6 {[%clk 0:00:16]} 56. Ng3 {[%clk 0:00:18.2]} 56... Kh7 {[%clk
0:00:15.2]} 57. Nf5 {[%clk 0:00:17.9]} 57... Rd8 {[%clk 0:00:15.1]} 58. g4
{[%clk 0:00:16.7]} 58... Rc8 {[%clk 0:00:13.4]} 59. g8=Q+ {[%clk 0:00:16.5]}
59... Kxg8 {[%clk 0:00:12.6]} 60. Ne7+ {[%clk 0:00:16.9]} 60... Kf8 {[%clk
0:00:13.2]} 61. Nxc8 {[%clk 0:00:17.8]} 61... Ke8 {[%clk 0:00:14.1]} 62. Nxd6+
{[%clk 0:00:18.3]} 62... Kd8 {[%clk 0:00:15]} 63. g5 {[%clk 0:00:18.8]} 63... a5
{[%clk 0:00:14.1]} 64. g6 {[%clk 0:00:19.5]} 64... a4 {[%clk 0:00:15]} 65. g7
{[%clk 0:00:20.1]} 65... a3 {[%clk 0:00:15.9]} 66. g8=Q# {[%clk 0:00:20.7]} 1-0

[Event "*** Titled Tuesday Blitz"]
[Site "Chess.com"]
[Date "2021.03.16"]
[Round "9"]
[White "Gahan-MG"]
[Black "zajka-molotok"]
[Result "0-1"]
[WhiteElo "2670"]
[BlackElo "2544"]
[TimeControl "180+1"]
[EndTime "11:45:34 PDT"]
[Termination "zajka-molotok won by resignation"]

1. e4 {[%clk 0:03:00.9]} 1... c6 {[%clk 0:02:59.8]} 2. d4 {[%clk 0:03:00.8]}
2... d5 {[%clk 0:03:00.4]} 3. exd5 {[%clk 0:03:01.5]} 3... cxd5 {[%clk
0:03:01.3]} 4. c4 {[%clk 0:03:00.3]} 4... Nf6 {[%clk 0:03:00.3]} 5. Nc3 {[%clk
0:03:00.5]} 5... Nc6 {[%clk 0:03:00.5]} 6. Nf3 {[%clk 0:02:58.5]} 6... Be6
{[%clk 0:03:00.1]} 7. Bg5 {[%clk 0:02:57.5]} 7... g6 {[%clk 0:02:59.7]} 8. Qa4
{[%clk 0:02:53.6]} 8... Bg7 {[%clk 0:02:49.9]} 9. c5 {[%clk 0:02:49.8]} 9... O-O
{[%clk 0:02:47.9]} 10. Bb5 {[%clk 0:02:47.9]} 10... Ne4 {[%clk 0:02:24.6]} 11.
Bxc6 {[%clk 0:02:45.1]} 11... bxc6 {[%clk 0:02:24.5]} 12. Be3 {[%clk 0:02:36.5]}
12... Qc7 {[%clk 0:02:11.8]} 13. O-O {[%clk 0:02:33]} 13... Rab8 {[%clk
0:02:06.9]} 14. Qa3 {[%clk 0:02:32]} 14... f5 {[%clk 0:02:01.8]} 15. Rfe1 {[%clk
0:02:27.9]} 15... f4 {[%clk 0:01:42.6]} 16. Bd2 {[%clk 0:02:25.9]} 16... Bf5
{[%clk 0:01:39.8]} 17. Rad1 {[%clk 0:02:19.8]} 17... h6 {[%clk 0:01:31.9]} 18.
Bc1 {[%clk 0:02:12.6]} 18... g5 {[%clk 0:01:31.6]} 19. b4 {[%clk 0:02:00.8]}
19... Qb7 {[%clk 0:01:22.6]} 20. Nxe4 {[%clk 0:01:56.4]} 20... dxe4 {[%clk
0:01:20.4]} 21. Ne5 {[%clk 0:01:55.5]} 21... Bxe5 {[%clk 0:01:14.9]} 22. dxe5
{[%clk 0:01:56.4]} 22... Qxb4 {[%clk 0:01:14.8]} 23. Qxa7 {[%clk 0:01:56.3]}
23... Rb7 {[%clk 0:01:11.4]} 24. Qa6 {[%clk 0:01:55.2]} 24... Qb5 {[%clk
0:01:03.1]} 25. Qa3 {[%clk 0:01:53.1]} 25... Qc4 {[%clk 0:00:50.4]} 26. h4
{[%clk 0:01:46.5]} 26... Qe6 {[%clk 0:00:46.8]} 27. hxg5 {[%clk 0:01:46.3]}
27... hxg5 {[%clk 0:00:47.7]} 28. Qc3 {[%clk 0:01:46.3]} 28... Kf7 {[%clk
0:00:45.4]} 29. a4 {[%clk 0:01:43.5]} 29... Rh8 {[%clk 0:00:43.9]} 30. f3 {[%clk
0:01:29.3]} 30... e3 {[%clk 0:00:42.8]} 31. Bxe3 {[%clk 0:01:28.4]} 31... fxe3
{[%clk 0:00:42.5]} 32. Rxe3 {[%clk 0:01:28.7]} 32... Qh6 {[%clk 0:00:35.8]} 33.
Kf2 {[%clk 0:01:25.3]} 33... Qh4+ {[%clk 0:00:34]} 34. Ke2 {[%clk 0:01:24.9]}
34... Be6 {[%clk 0:00:28.9]} 35. a5 {[%clk 0:01:19.3]} 35... Qc4+ {[%clk
0:00:24.3]} 36. Kf2 {[%clk 0:01:17.2]} 36... Qxc3 {[%clk 0:00:24]} 37. Rxc3
{[%clk 0:01:18.1]} 37... Ra8 {[%clk 0:00:23.4]} 38. Ra1 {[%clk 0:01:13]} 38...
Ra6 {[%clk 0:00:23.2]} 39. g3 {[%clk 0:01:08.6]} 39... Rb5 {[%clk 0:00:23.2]}
40. Rca3 {[%clk 0:01:04.6]} 40... Rxc5 {[%clk 0:00:22.7]} 41. f4 {[%clk
0:01:05.5]} 41... gxf4 {[%clk 0:00:21.9]} 42. gxf4 {[%clk 0:01:06.4]} 42... Bf5
{[%clk 0:00:21]} 43. Ke3 {[%clk 0:01:05.3]} 43... e6 {[%clk 0:00:20.5]} 44. Kd4
{[%clk 0:01:03.7]} 44... Rb5 {[%clk 0:00:20.1]} 45. Kc4 {[%clk 0:00:59.9]} 45...
Be4 {[%clk 0:00:19.9]} 46. Kd4 {[%clk 0:00:59.1]} 46... Bd5 {[%clk 0:00:19.9]}
47. Ra4 {[%clk 0:00:56.4]} 47... Rb2 {[%clk 0:00:18.6]} 48. Kc5 {[%clk
0:00:53.2]} 48... Rc2+ {[%clk 0:00:17.1]} 49. Kd6 {[%clk 0:00:51.8]} 49... c5+
{[%clk 0:00:14.4]} 50. Kc7 {[%clk 0:00:51.2]} 50... c4 {[%clk 0:00:14]} 51. Rb4
{[%clk 0:00:47.6]} 51... c3 {[%clk 0:00:13.4]} 52. Rb6 {[%clk 0:00:47.4]} 52...
Ra8 {[%clk 0:00:12.5]} 53. a6 {[%clk 0:00:42.9]} 53... Rb2 {[%clk 0:00:12.6]}
54. a7 {[%clk 0:00:38.5]} 54... Rxb6 {[%clk 0:00:10.3]} 55. Kxb6 {[%clk
0:00:38.7]} 55... c2 {[%clk 0:00:10.7]} 56. Rc1 {[%clk 0:00:35.7]} 56... Rc8
{[%clk 0:00:10.3]} 57. Ka6 {[%clk 0:00:32]} 57... Kg6 {[%clk 0:00:10]} 58. Kb6
{[%clk 0:00:22.5]} 58... Kf5 {[%clk 0:00:09.9]} 59. Rxc2 {[%clk 0:00:16.8]}
59... Rxc2 {[%clk 0:00:09.1]} 0-1